[Event "Titled Tuesday Blitz July 18 Early 2023"]
[White "Rosh Jain"]
[Black "Kiseljova, Marya"]
[WhiteFideId "25789465"]
[BlackFideId "4155009"]
[WhiteElo "2432"]
[BlackElo "2137"]
[Result "1-0"]
[Round "2"]
[TimeControl "180+2"]
[Date "2023.07.18"]
[WhiteClock "0:00:26"]
[BlackClock "0:00:18"]
[Board "197"]

1. e4 {[%clk 0:03:00]}  c5 {[%clk 0:02:59]} 2. Nc3 {[%clk 0:02:59]}  Nc6 {[%clk 0:02:55]} 3. f4 {[%clk 0:02:59]}  g6 {[%clk 0:02:53]} 4. Nf3 {[%clk 0:02:59]}  Bg7 {[%clk 0:02:53]} 5. a4 {[%clk 0:02:58]}  e6 {[%clk 0:02:53]} 6. e5 {[%clk 0:02:57]}  Nge7 {[%clk 0:02:52]} 7. Bb5 {[%clk 0:02:49]}  d6 {[%clk 0:02:44]} 8. Ne4 {[%clk 0:02:47]}  dxe5 {[%clk 0:02:38]} 9. fxe5 {[%clk 0:02:48]}  O-O {[%clk 0:02:25]} 10. Nf6+ {[%clk 0:02:47]}  Kh8 {[%clk 0:02:25]} 11. d4 {[%clk 0:02:47]}  cxd4 {[%clk 0:02:22]} 12. Bg5 {[%clk 0:02:45]}  h6 {[%clk 0:02:08]} 13. h4 {[%clk 0:02:45]}  Nf5 {[%clk 0:02:02]} 14. Bd3 {[%clk 0:01:47]}  Qa5+ {[%clk 0:01:54]} 15. Bd2 {[%clk 0:01:39]}  Qc5 {[%clk 0:01:51]} 16. Bf4 {[%clk 0:01:22]}  Qb4+ {[%clk 0:01:25]} 17. Kf2 {[%clk 0:01:19]}  Qxb2 {[%clk 0:01:12]} 18. Bg5 {[%clk 0:00:54]}  Ne3 {[%clk 0:01:06]} 19. Qe2 {[%clk 0:00:50]}  Ng4+ {[%clk 0:00:59]} 20. Nxg4 {[%clk 0:00:48]}  hxg5 {[%clk 0:00:56]} 21. hxg5+ {[%clk 0:00:47]}  Kg8 {[%clk 0:00:56]} 22. Nf6+ {[%clk 0:00:43]}  Bxf6 {[%clk 0:00:56]} 23. gxf6 {[%clk 0:00:44]}  Nb4 {[%clk 0:00:43]} 24. Qd2 {[%clk 0:00:29]}  Nxd3+ {[%clk 0:00:41]} 25. Kg3 {[%clk 0:00:29]}  Nxe5 {[%clk 0:00:27]} 26. Qh6 {[%clk 0:00:26]}  Nxf3 {[%clk 0:00:18]} 27. Qg7# {[%clk 0:00:26]} 1-0


[Site "https://www.chess.com"]

[Event "Titled Tuesday Blitz July 18 Early 2023"]
[White "Devaev, Alexander"]
[Black "Guevara Sanchez, Erick Marvin"]
[WhiteFideId "4169395"]
[BlackFideId "6700136"]
[WhiteElo "2431"]
[BlackElo "2134"]
[Result "1-0"]
[Round "2"]
[TimeControl "180+2"]
[Date "2023.07.18"]
[WhiteClock "0:00:03"]
[BlackClock "0:00:00"]
[Board "198"]

1. d4 {[%clk 0:03:00]}  Nf6 {[%clk 0:02:59]} 2. c4 {[%clk 0:03:01]}  e6 {[%clk 0:02:59]} 3. Nf3 {[%clk 0:03:01]}  Bb4+ {[%clk 0:02:59]} 4. Bd2 {[%clk 0:03:01]}  Qe7 {[%clk 0:02:58]} 5. Qc2 {[%clk 0:03:01]}  O-O {[%clk 0:02:57]} 6. g3 {[%clk 0:03:01]}  c5 {[%clk 0:02:56]} 7. Bg2 {[%clk 0:02:55]}  Nc6 {[%clk 0:02:55]} 8. dxc5 {[%clk 0:02:54]}  Bxc5 {[%clk 0:02:55]} 9. O-O {[%clk 0:02:55]}  d5 {[%clk 0:02:52]} 10. cxd5 {[%clk 0:02:45]}  exd5 {[%clk 0:02:52]} 11. e3 {[%clk 0:02:29]}  Be6 {[%clk 0:02:39]} 12. Nc3 {[%clk 0:02:08]}  Rac8 {[%clk 0:02:36]} 13. Rad1 {[%clk 0:02:07]}  Rfd8 {[%clk 0:02:30]} 14. Rfe1 {[%clk 0:02:07]}  a6 {[%clk 0:02:27]} 15. Qb1 {[%clk 0:02:07]}  b5 {[%clk 0:02:17]} 16. Ne2 {[%clk 0:02:04]}  Ne4 {[%clk 0:02:13]} 17. Nf4 {[%clk 0:02:01]}  Bf5 {[%clk 0:02:06]} 18. Nh4 {[%clk 0:01:54]}  Bg4 {[%clk 0:01:55]} 19. Nxd5 {[%clk 0:01:12]}  Rxd5 {[%clk 0:01:26]} 20. Bxe4 {[%clk 0:01:11]}  Bxd1 {[%clk 0:01:25]} 21. Bxd5 {[%clk 0:01:07]}  Bh5 {[%clk 0:01:21]} 22. Bc3 {[%clk 0:00:52]}  Qg5 {[%clk 0:00:50]} 23. Qf5 {[%clk 0:00:43]}  Qxf5 {[%clk 0:00:48]} 24. Nxf5 {[%clk 0:00:44]}  b4 {[%clk 0:00:46]} 25. Bxg7 {[%clk 0:00:31]}  Bg6 {[%clk 0:00:44]} 26. Bd4 {[%clk 0:00:29]}  Nxd4 {[%clk 0:00:17]} 27. exd4 {[%clk 0:00:22]}  Bf8 {[%clk 0:00:16]} 28. Ne7+ {[%clk 0:00:17]}  Bxe7 {[%clk 0:00:16]} 29. Rxe7 {[%clk 0:00:17]}  Rc2 {[%clk 0:00:17]} 30. f4 {[%clk 0:00:13]}  Kf8 {[%clk 0:00:11]} 31. Ra7 {[%clk 0:00:10]}  Rxb2 {[%clk 0:00:11]} 32. Rxa6 {[%clk 0:00:09]}  Rd2 {[%clk 0:00:05]} 33. f5 {[%clk 0:00:09]}  Bxf5 {[%clk 0:00:05]} 34. Rf6 {[%clk 0:00:08]}  Bg6 {[%clk 0:00:05]} 35. Rf4 {[%clk 0:00:08]}  Rd1+ {[%clk 0:00:03]} 36. Kf2 {[%clk 0:00:08]}  Rd2+ {[%clk 0:00:04]} 37. Kg1 {[%clk 0:00:08]}  Rd1+ {[%clk 0:00:04]} 38. Kg2 {[%clk 0:00:09]}  Rd2+ {[%clk 0:00:04]} 39. Kh3 {[%clk 0:00:09]}  Kg7 {[%clk 0:00:04]} 40. Bb3 {[%clk 0:00:09]}  Rd3 {[%clk 0:00:03]} 41. Kg2 {[%clk 0:00:09]}  Rd2+ {[%clk 0:00:03]} 42. Rf2 {[%clk 0:00:10]}  Rxd4 {[%clk 0:00:01]} 43. h4 {[%clk 0:00:09]}  Rd8 {[%clk 0:00:02]} 44. Kh2 {[%clk 0:00:09]}  Ra8 {[%clk 0:00:03]} 45. Rf4 {[%clk 0:00:10]}  Ra3 {[%clk 0:00:03]} 46. Rxb4 {[%clk 0:00:10]}  Bb1 {[%clk 0:00:03]} 47. Rb7 {[%clk 0:00:08]}  Bxa2 {[%clk 0:00:04]} 48. Rxf7+ {[%clk 0:00:08]}  Kg6 {[%clk 0:00:04]} 49. Rc7 {[%clk 0:00:03]}  Rxb3 {[%clk 0:00:03]} 50. Kh3 {[%clk 0:00:03]}  Rb6 {[%clk 0:00:02]} 51. Rc3 {[%clk 0:00:03]}  Be6+ {[%clk 0:00:03]} 52. g4 {[%clk 0:00:04]}  Rb4 {[%clk 0:00:03]} 53. h5+ {[%clk 0:00:04]}  Kg5 {[%clk 0:00:03]} 54. Rc5+ {[%clk 0:00:05]}  Kf4 {[%clk 0:00:04]} 55. Kh4 {[%clk 0:00:04]}  Bxg4 {[%clk 0:00:04]} 56. Rc7 {[%clk 0:00:04]}  Kf3 {[%clk 0:00:03]} 57. Rf7+ {[%clk 0:00:04]}  Bf5+ {[%clk 0:00:04]} 58. Kg5 {[%clk 0:00:03]}  Rg4+ {[%clk 0:00:03]} 59. Kh6 {[%clk 0:00:03]}  Rh4 {[%clk 0:00:04]} 60. Kg5 {[%clk 0:00:03]}  Rg4+ {[%clk 0:00:04]} 61. Kh6 {[%clk 0:00:04]}  Ke4 {[%clk 0:00:02]} 62. Re7+ {[%clk 0:00:02]}  Kf4 {[%clk 0:00:02]} 63. Rf7 {[%clk 0:00:02]}  Rg3 {[%clk 0:00:02]} 64. Rf8 {[%clk 0:00:02]}  Rg5 {[%clk 0:00:02]} 65. Ra8 {[%clk 0:00:01]}  Rg4 {[%clk 0:00:02]} 66. Ra4+ {[%clk 0:00:01]}  Kg3 {[%clk 0:00:02]} 67. Ra5 {[%clk 0:00:01]}  Rf4 {[%clk 0:00:01]} 68. Ra3+ {[%clk 0:00:02]}  Kg4 {[%clk 0:00:00]} 69. Ra7 {[%clk 0:00:03]} 1-0


[Site "https://www.chess.com"]

[Event "Titled Tuesday Blitz July 18 Early 2023"]
[White "Ishowmoves57"]
[Black "Uzcategui Rodriguez, Alejandro"]
[BlackFideId "3903400"]
[WhiteElo "2124"]
[BlackElo "2431"]
[Result "0-1"]
[Round "2"]
[TimeControl "180+2"]
[Date "2023.07.18"]
[WhiteClock "0:00:03"]
[BlackClock "0:00:09"]
[Board "199"]

1. e4 {[%clk 0:03:00]}  d5 {[%clk 0:02:57]} 2. exd5 {[%clk 0:03:00]}  Nf6 {[%clk 0:02:58]} 3. Bb5+ {[%clk 0:02:58]}  Bd7 {[%clk 0:02:54]} 4. Bxd7+ {[%clk 0:02:57]}  Nbxd7 {[%clk 0:02:54]} 5. c4 {[%clk 0:02:38]}  g6 {[%clk 0:02:51]} 6. Nf3 {[%clk 0:02:37]}  Bg7 {[%clk 0:02:51]} 7. O-O {[%clk 0:02:36]}  O-O {[%clk 0:02:51]} 8. Nc3 {[%clk 0:02:35]}  Nb6 {[%clk 0:02:44]} 9. b3 {[%clk 0:02:17]}  Ne4 {[%clk 0:02:31]} 10. Bb2 {[%clk 0:02:06]}  c6 {[%clk 0:02:27]} 11. dxc6 {[%clk 0:01:56]}  bxc6 {[%clk 0:02:28]} 12. d4 {[%clk 0:01:55]}  Nxc3 {[%clk 0:02:21]} 13. Bxc3 {[%clk 0:01:56]}  c5 {[%clk 0:02:21]} 14. Qd2 {[%clk 0:01:48]}  cxd4 {[%clk 0:02:16]} 15. Bxd4 {[%clk 0:01:44]}  e5 {[%clk 0:02:16]} 16. Bc3 {[%clk 0:01:35]}  Qc7 {[%clk 0:02:00]} 17. Qb2 {[%clk 0:01:32]}  Rfe8 {[%clk 0:02:00]} 18. Rfe1 {[%clk 0:01:31]}  f6 {[%clk 0:01:51]} 19. Rad1 {[%clk 0:01:29]}  Rab8 {[%clk 0:01:52]} 20. Qa1 {[%clk 0:01:26]}  Red8 {[%clk 0:01:50]} 21. Nd2 {[%clk 0:01:20]}  Re8 {[%clk 0:01:43]} 22. Ne4 {[%clk 0:01:19]}  f5 {[%clk 0:01:41]} 23. Ng5 {[%clk 0:01:17]}  h6 {[%clk 0:01:15]} 24. Nf3 {[%clk 0:01:13]}  e4 {[%clk 0:01:07]} 25. Bxg7 {[%clk 0:01:09]}  Qxg7 {[%clk 0:01:07]} 26. Qxg7+ {[%clk 0:01:03]}  Kxg7 {[%clk 0:01:08]} 27. Nd4 {[%clk 0:01:01]}  a6 {[%clk 0:01:04]} 28. Nc6 {[%clk 0:00:57]}  Rbc8 {[%clk 0:01:03]} 29. Rd6 {[%clk 0:00:54]}  Rc7 {[%clk 0:00:43]} 30. Nb4 {[%clk 0:00:48]}  a5 {[%clk 0:00:35]} 31. Rxb6 {[%clk 0:00:44]}  axb4 {[%clk 0:00:35]} 32. Rxb4 {[%clk 0:00:44]}  Rd7 {[%clk 0:00:31]} 33. a4 {[%clk 0:00:42]}  Rd2 {[%clk 0:00:31]} 34. a5 {[%clk 0:00:33]}  Ra2 {[%clk 0:00:29]} 35. Rb7+ {[%clk 0:00:32]}  Kf6 {[%clk 0:00:28]} 36. b4 {[%clk 0:00:31]}  e3 {[%clk 0:00:22]} 37. fxe3 {[%clk 0:00:30]}  f4 {[%clk 0:00:23]} 38. e4 {[%clk 0:00:19]}  Rd8 {[%clk 0:00:23]} 39. e5+ {[%clk 0:00:15]}  Kg5 {[%clk 0:00:23]} 40. Rb5 {[%clk 0:00:12]}  Rdd2 {[%clk 0:00:23]} 41. e6+ {[%clk 0:00:12]}  Kh4 {[%clk 0:00:23]} 42. g3+ {[%clk 0:00:09]}  Kg4 {[%clk 0:00:20]} 43. gxf4 {[%clk 0:00:08]}  Rg2+ {[%clk 0:00:20]} 44. Kh1 {[%clk 0:00:08]}  Rxh2+ {[%clk 0:00:18]} 45. Kg1 {[%clk 0:00:08]}  Rag2+ {[%clk 0:00:13]} 46. Kf1 {[%clk 0:00:08]}  Kf3 {[%clk 0:00:13]} 47. Re3+ {[%clk 0:00:05]}  Kxe3 {[%clk 0:00:14]} 48. e7 {[%clk 0:00:05]}  Kf3 {[%clk 0:00:11]} 49. Rh5 {[%clk 0:00:03]}  Rxh5 {[%clk 0:00:08]} 50. e8=Q {[%clk 0:00:03]}  Rh1# {[%clk 0:00:09]} 0-1


[Site "https://www.chess.com"]

[Event "Titled Tuesday Blitz July 18 Early 2023"]
[White "Johnson, Ben"]
[Black "Vivas Zamora, Fabian Ernesto"]
[WhiteFideId "2010917"]
[BlackFideId "3902480"]
[WhiteElo "2123"]
[BlackElo "2428"]
[Result "0-1"]
[Round "2"]
[TimeControl "180+2"]
[Date "2023.07.18"]
[WhiteClock "0:00:34"]
[BlackClock "0:00:36"]
[Board "200"]

1. Nf3 {[%clk 0:03:00]}  Nf6 {[%clk 0:02:57]} 2. c4 {[%clk 0:02:59]}  g6 {[%clk 0:02:51]} 3. b3 {[%clk 0:02:59]}  Bg7 {[%clk 0:02:51]} 4. Bb2 {[%clk 0:03:00]}  O-O {[%clk 0:02:51]} 5. g3 {[%clk 0:03:00]}  Nc6 {[%clk 0:02:42]} 6. Bg2 {[%clk 0:02:54]}  d5 {[%clk 0:02:42]} 7. O-O {[%clk 0:02:48]}  d4 {[%clk 0:02:41]} 8. d3 {[%clk 0:02:31]}  e5 {[%clk 0:02:39]} 9. Nbd2 {[%clk 0:02:30]}  Re8 {[%clk 0:02:34]} 10. Ng5 {[%clk 0:02:22]}  a5 {[%clk 0:02:28]} 11. a3 {[%clk 0:02:19]}  Nd7 {[%clk 0:02:15]} 12. h4 {[%clk 0:02:08]}  h6 {[%clk 0:02:13]} 13. Ngf3 {[%clk 0:01:54]}  Nc5 {[%clk 0:02:11]} 14. Rb1 {[%clk 0:01:46]}  Bf5 {[%clk 0:02:06]} 15. Nh2 {[%clk 0:01:25]}  Qd7 {[%clk 0:01:07]} 16. Re1 {[%clk 0:01:17]}  e4 {[%clk 0:01:01]} 17. dxe4 {[%clk 0:01:13]}  Nxe4 {[%clk 0:00:59]} 18. Nxe4 {[%clk 0:01:12]}  Bxe4 {[%clk 0:00:59]} 19. Nf3 {[%clk 0:01:03]}  Bxb1 {[%clk 0:00:55]} 20. Qxb1 {[%clk 0:01:04]}  Rad8 {[%clk 0:00:52]} 21. Qd3 {[%clk 0:01:00]}  Ne7 {[%clk 0:00:42]} 22. b4 {[%clk 0:00:52]}  axb4 {[%clk 0:00:38]} 23. axb4 {[%clk 0:00:53]}  Qf5 {[%clk 0:00:36]} 24. Nxd4 {[%clk 0:00:45]}  Qxd3 {[%clk 0:00:36]} 25. exd3 {[%clk 0:00:45]}  Bxd4 {[%clk 0:00:36]} 26. Bc1 {[%clk 0:00:40]}  Nf5 {[%clk 0:00:35]} 27. Rxe8+ {[%clk 0:00:37]}  Rxe8 {[%clk 0:00:36]} 28. Bxb7 {[%clk 0:00:34]}  Re1+ {[%clk 0:00:36]} 0-1


[Site "https://www.chess.com"]

[Event "Titled Tuesday Blitz July 18 Early 2023"]
[White "Federzoni, Enzo"]
[Black "Horokoskii"]
[WhiteFideId "2173301"]
[WhiteElo "2421"]
[BlackElo "2116"]
[Result "0-1"]
[Round "2"]
[TimeControl "180+2"]
[Date "2023.07.18"]
[WhiteClock "0:00:00"]
[BlackClock "0:00:04"]
[Board "203"]

1. d4 {[%clk 0:02:56]}  Nf6 {[%clk 0:02:53]} 2. Nc3 {[%clk 0:02:50]}  g6 {[%clk 0:02:52]} 3. e4 {[%clk 0:02:48]}  d6 {[%clk 0:02:51]} 4. g3 {[%clk 0:02:49]}  Nbd7 {[%clk 0:02:49]} 5. Bg2 {[%clk 0:02:49]}  c6 {[%clk 0:02:49]} 6. Nge2 {[%clk 0:02:49]}  b5 {[%clk 0:02:50]} 7. a3 {[%clk 0:02:49]}  Bg7 {[%clk 0:02:49]} 8. O-O {[%clk 0:02:49]}  O-O {[%clk 0:02:48]} 9. h3 {[%clk 0:02:50]}  Bb7 {[%clk 0:02:43]} 10. Be3 {[%clk 0:02:49]}  a5 {[%clk 0:02:42]} 11. b4 {[%clk 0:02:45]}  axb4 {[%clk 0:02:31]} 12. axb4 {[%clk 0:02:46]}  Qc7 {[%clk 0:02:30]} 13. Qd3 {[%clk 0:02:38]}  Rfd8 {[%clk 0:02:22]} 14. f4 {[%clk 0:02:38]}  c5 {[%clk 0:02:20]} 15. Nxb5 {[%clk 0:02:28]}  Qc6 {[%clk 0:02:03]} 16. d5 {[%clk 0:02:19]}  Qb6 {[%clk 0:02:01]} 17. bxc5 {[%clk 0:02:18]}  Nxc5 {[%clk 0:02:01]} 18. Rxa8 {[%clk 0:02:15]}  Rxa8 {[%clk 0:01:59]} 19. c4 {[%clk 0:02:12]}  Qxb5 {[%clk 0:01:47]} 20. cxb5 {[%clk 0:02:12]}  Nxd3 {[%clk 0:01:47]} 21. Nd4 {[%clk 0:02:11]}  Nd7 {[%clk 0:01:29]} 22. Nc6 {[%clk 0:01:37]}  Kf8 {[%clk 0:01:21]} 23. Rd1 {[%clk 0:01:05]}  Ra1 {[%clk 0:01:18]} 24. Rxa1 {[%clk 0:01:05]}  Bxa1 {[%clk 0:01:19]} 25. Kf1 {[%clk 0:01:01]}  f5 {[%clk 0:00:58]} 26. exf5 {[%clk 0:00:52]}  gxf5 {[%clk 0:00:59]} 27. Bf3 {[%clk 0:00:49]}  Bc3 {[%clk 0:00:56]} 28. Ke2 {[%clk 0:00:47]}  Nb4 {[%clk 0:00:55]} 29. b6 {[%clk 0:00:30]}  Nf6 {[%clk 0:00:50]} 30. Nd8 {[%clk 0:00:30]}  Ba6+ {[%clk 0:00:37]} 31. Kd1 {[%clk 0:00:27]}  Nfxd5 {[%clk 0:00:34]} 32. Bf2 {[%clk 0:00:24]}  Ke8 {[%clk 0:00:19]} 33. b7 {[%clk 0:00:24]}  Bxb7 {[%clk 0:00:15]} 34. Nxb7 {[%clk 0:00:25]}  Kf7 {[%clk 0:00:15]} 35. Na5 {[%clk 0:00:23]}  Nf6 {[%clk 0:00:13]} 36. Nc4 {[%clk 0:00:19]}  Nbd5 {[%clk 0:00:09]} 37. Kc2 {[%clk 0:00:17]}  Bb4 {[%clk 0:00:10]} 38. Kd3 {[%clk 0:00:17]}  Bc5 {[%clk 0:00:08]} 39. Bxc5 {[%clk 0:00:16]}  dxc5 {[%clk 0:00:09]} 40. Ne5+ {[%clk 0:00:16]}  Kg7 {[%clk 0:00:08]} 41. Nc6 {[%clk 0:00:14]}  Nc7 {[%clk 0:00:08]} 42. Nxe7 {[%clk 0:00:14]}  Ne6 {[%clk 0:00:05]} 43. Nxf5+ {[%clk 0:00:14]}  Kg6 {[%clk 0:00:05]} 44. Ne7+ {[%clk 0:00:13]}  Kf7 {[%clk 0:00:05]} 45. Nd5 {[%clk 0:00:13]}  Ne8 {[%clk 0:00:03]} 46. Kc4 {[%clk 0:00:12]}  N6g7 {[%clk 0:00:03]} 47. g4 {[%clk 0:00:11]}  Kg6 {[%clk 0:00:04]} 48. Kxc5 {[%clk 0:00:11]}  h5 {[%clk 0:00:04]} 49. Be4+ {[%clk 0:00:10]}  Kh6 {[%clk 0:00:04]} 50. Ne7 {[%clk 0:00:09]}  Ne6+ {[%clk 0:00:03]} 51. Kc4 {[%clk 0:00:04]}  Nxf4 {[%clk 0:00:03]} 52. Nf5+ {[%clk 0:00:03]}  Kg5 {[%clk 0:00:03]} 53. gxh5 {[%clk 0:00:00]}  Nxh5 {[%clk 0:00:04]} 0-1


[Site "https://www.chess.com"]

[Event "Titled Tuesday Blitz July 18 Early 2023"]
[White "Winkels, Marcel"]
[Black "Buchenau, Frank"]
[WhiteFideId "1003887"]
[BlackFideId "4604350"]
[WhiteElo "2104"]
[BlackElo "2419"]
[Result "0-1"]
[Round "2"]
[TimeControl "180+2"]
[Date "2023.07.18"]
[WhiteClock "0:00:58"]
[BlackClock "0:02:20"]
[Board "204"]

1. e4 {[%clk 0:03:00]}  e6 {[%clk 0:02:57]} 2. d4 {[%clk 0:02:59]}  d5 {[%clk 0:02:57]} 3. e5 {[%clk 0:03:00]}  c5 {[%clk 0:02:57]} 4. c3 {[%clk 0:03:00]}  Qb6 {[%clk 0:02:57]} 5. Nf3 {[%clk 0:03:00]}  Bd7 {[%clk 0:02:57]} 6. Be2 {[%clk 0:03:00]}  cxd4 {[%clk 0:02:56]} 7. cxd4 {[%clk 0:02:59]}  Bb5 {[%clk 0:02:56]} 8. O-O {[%clk 0:02:51]}  Bxe2 {[%clk 0:02:55]} 9. Qxe2 {[%clk 0:02:51]}  Nc6 {[%clk 0:02:56]} 10. Be3 {[%clk 0:02:50]}  Nge7 {[%clk 0:02:56]} 11. Nc3 {[%clk 0:02:49]}  Nf5 {[%clk 0:02:56]} 12. Rfd1 {[%clk 0:02:37]}  Be7 {[%clk 0:02:52]} 13. g4 {[%clk 0:02:34]}  Nxe3 {[%clk 0:02:52]} 14. Qxe3 {[%clk 0:02:33]}  O-O {[%clk 0:02:49]} 15. a3 {[%clk 0:02:26]}  Na5 {[%clk 0:02:46]} 16. b4 {[%clk 0:02:22]}  Nc4 {[%clk 0:02:46]} 17. Qe2 {[%clk 0:02:16]}  a5 {[%clk 0:02:43]} 18. Na4 {[%clk 0:01:58]}  Qb5 {[%clk 0:02:42]} 19. Nc3 {[%clk 0:01:57]}  Qd7 {[%clk 0:02:35]} 20. Rab1 {[%clk 0:01:49]}  Nxa3 {[%clk 0:02:33]} 21. Rb3 {[%clk 0:01:40]}  axb4 {[%clk 0:02:29]} 22. Na2 {[%clk 0:01:38]}  Qa4 {[%clk 0:02:27]} 23. Qb2 {[%clk 0:00:58]}  Nc4 {[%clk 0:02:20]} 0-1


[Site "https://www.chess.com"]

[Event "Titled Tuesday Blitz July 18 Early 2023"]
[White "Rom, Jasper"]
[Black "Sava, Christiansen-Danut-Eugen"]
[WhiteFideId "2023733"]
[BlackFideId "1210114"]
[WhiteElo "2418"]
[BlackElo "2101"]
[Result "1-0"]
[Round "2"]
[TimeControl "180+2"]
[Date "2023.07.18"]
[WhiteClock "0:00:28"]
[BlackClock "0:00:03"]
[Board "205"]

1. e4 {[%clk 0:03:00]}  e6 {[%clk 0:01:25]} 2. d4 {[%clk 0:02:58]}  d5 {[%clk 0:01:26]} 3. Bd3 {[%clk 0:02:58]}  dxe4 {[%clk 0:01:23]} 4. Bxe4 {[%clk 0:02:58]}  Nf6 {[%clk 0:01:21]} 5. Bf3 {[%clk 0:02:58]}  c5 {[%clk 0:01:17]} 6. Ne2 {[%clk 0:02:57]}  Nc6 {[%clk 0:01:16]} 7. Be3 {[%clk 0:02:57]}  cxd4 {[%clk 0:01:12]} 8. Nxd4 {[%clk 0:02:57]}  Nxd4 {[%clk 0:01:12]} 9. Qxd4 {[%clk 0:02:57]}  Qxd4 {[%clk 0:01:11]} 10. Bxd4 {[%clk 0:02:58]}  Bd6 {[%clk 0:01:09]} 11. Nc3 {[%clk 0:02:55]}  Bd7 {[%clk 0:01:03]} 12. O-O-O {[%clk 0:02:51]}  Ke7 {[%clk 0:00:56]} 13. Rhe1 {[%clk 0:02:45]}  Bc6 {[%clk 0:00:39]} 14. Ne4 {[%clk 0:01:57]}  Nxe4 {[%clk 0:00:23]} 15. Bxe4 {[%clk 0:01:56]}  Bxe4 {[%clk 0:00:23]} 16. Rxe4 {[%clk 0:01:56]}  Rac8 {[%clk 0:00:21]} 17. g3 {[%clk 0:01:43]}  f6 {[%clk 0:00:15]} 18. Kb1 {[%clk 0:01:41]}  e5 {[%clk 0:00:13]} 19. f4 {[%clk 0:01:37]}  a6 {[%clk 0:00:09]} 20. fxe5 {[%clk 0:01:36]}  Bxe5 {[%clk 0:00:10]} 21. Bxe5 {[%clk 0:01:34]}  fxe5 {[%clk 0:00:11]} 22. Rxe5+ {[%clk 0:01:34]}  Kf6 {[%clk 0:00:11]} 23. Rde1 {[%clk 0:01:19]}  Rc7 {[%clk 0:00:11]} 24. b3 {[%clk 0:01:17]}  Rd8 {[%clk 0:00:10]} 25. Re6+ {[%clk 0:01:16]}  Kf7 {[%clk 0:00:10]} 26. R1e2 {[%clk 0:01:16]}  Rd1+ {[%clk 0:00:10]} 27. Kb2 {[%clk 0:01:16]}  Rcd7 {[%clk 0:00:10]} 28. R6e4 {[%clk 0:01:07]}  R1d2 {[%clk 0:00:10]} 29. Kc3 {[%clk 0:01:03]}  Rxe2 {[%clk 0:00:10]} 30. Rxe2 {[%clk 0:01:04]}  Rc7+ {[%clk 0:00:11]} 31. Kd4 {[%clk 0:00:59]}  Rd7+ {[%clk 0:00:12]} 32. Kc5 {[%clk 0:00:58]}  Kg6 {[%clk 0:00:08]} 33. Kb6 {[%clk 0:00:56]}  Kg5 {[%clk 0:00:08]} 34. h3 {[%clk 0:00:53]}  h5 {[%clk 0:00:08]} 35. c4 {[%clk 0:00:53]}  h4 {[%clk 0:00:08]} 36. g4 {[%clk 0:00:46]}  Kf4 {[%clk 0:00:07]} 37. Rc2 {[%clk 0:00:40]}  Kg3 {[%clk 0:00:06]} 38. Rc3+ {[%clk 0:00:39]}  Kg2 {[%clk 0:00:06]} 39. c5 {[%clk 0:00:33]}  g5 {[%clk 0:00:05]} 40. a4 {[%clk 0:00:33]}  Rf7 {[%clk 0:00:04]} 41. b4 {[%clk 0:00:29]}  Kf2 {[%clk 0:00:03]} 42. b5 {[%clk 0:00:28]}  axb5 {[%clk 0:00:04]} 43. axb5 {[%clk 0:00:29]}  Re7 {[%clk 0:00:02]} 44. c6 {[%clk 0:00:29]}  bxc6 {[%clk 0:00:03]} 45. bxc6 {[%clk 0:00:29]}  Re6 {[%clk 0:00:04]} 46. Kb7 {[%clk 0:00:29]}  Kg2 {[%clk 0:00:03]} 47. c7 {[%clk 0:00:29]}  Re7 {[%clk 0:00:04]} 48. Kb8 {[%clk 0:00:28]}  Rxc7 {[%clk 0:00:03]} 49. Kxc7 {[%clk 0:00:28]} 1-0


[Site "https://www.chess.com"]

[Event "Titled Tuesday Blitz July 18 Early 2023"]
[White "Manukian, Artak"]
[Black "ogpin"]
[WhiteFideId "13301373"]
[WhiteElo "2414"]
[BlackElo "2043"]
[Result "0-1"]
[Round "2"]
[TimeControl "180+2"]
[Date "2023.07.18"]
[WhiteClock "0:00:12"]
[BlackClock "0:00:14"]
[Board "208"]

1. e4 {[%clk 0:02:57]}  d6 {[%clk 0:02:59]} 2. d4 {[%clk 0:02:45]}  Nf6 {[%clk 0:02:58]} 3. f3 {[%clk 0:02:45]}  Nbd7 {[%clk 0:02:57]} 4. c4 {[%clk 0:02:45]}  c6 {[%clk 0:02:53]} 5. Nc3 {[%clk 0:02:45]}  g6 {[%clk 0:02:45]} 6. Bg5 {[%clk 0:02:44]}  Bg7 {[%clk 0:02:43]} 7. Qd2 {[%clk 0:02:43]}  h6 {[%clk 0:02:43]} 8. Be3 {[%clk 0:02:41]}  a6 {[%clk 0:02:29]} 9. a4 {[%clk 0:02:40]}  e5 {[%clk 0:02:20]} 10. dxe5 {[%clk 0:02:33]}  dxe5 {[%clk 0:02:17]} 11. Bd3 {[%clk 0:02:25]}  Nh5 {[%clk 0:02:14]} 12. Nge2 {[%clk 0:02:24]}  O-O {[%clk 0:01:54]} 13. O-O {[%clk 0:02:21]}  Kh7 {[%clk 0:01:50]} 14. g4 {[%clk 0:02:19]}  Nhf6 {[%clk 0:01:50]} 15. Bc2 {[%clk 0:02:14]}  Qc7 {[%clk 0:01:37]} 16. Rfd1 {[%clk 0:02:12]}  Rd8 {[%clk 0:01:27]} 17. Qd6 {[%clk 0:02:10]}  Qxd6 {[%clk 0:01:23]} 18. Rxd6 {[%clk 0:02:09]}  Bf8 {[%clk 0:01:24]} 19. Rd2 {[%clk 0:02:08]}  b6 {[%clk 0:01:08]} 20. Bxb6 {[%clk 0:02:01]}  Nxb6 {[%clk 0:00:58]} 21. Rxd8 {[%clk 0:02:00]}  Be7 {[%clk 0:00:57]} 22. Rd3 {[%clk 0:01:45]}  Nxc4 {[%clk 0:00:57]} 23. b3 {[%clk 0:01:42]}  Bc5+ {[%clk 0:00:57]} 24. Kh1 {[%clk 0:01:38]}  Ne3 {[%clk 0:00:56]} 25. Rc1 {[%clk 0:01:27]}  Be6 {[%clk 0:00:52]} 26. b4 {[%clk 0:01:19]}  Ba7 {[%clk 0:00:52]} 27. a5 {[%clk 0:01:00]}  Rb8 {[%clk 0:00:52]} 28. Rd6 {[%clk 0:00:47]}  Rxb4 {[%clk 0:00:48]} 29. Rxc6 {[%clk 0:00:46]}  Rb2 {[%clk 0:00:34]} 30. Rxa6 {[%clk 0:00:41]}  Bd4 {[%clk 0:00:34]} 31. Bd3 {[%clk 0:00:29]}  Bxg4 {[%clk 0:00:29]} 32. Nxd4 {[%clk 0:00:25]}  exd4 {[%clk 0:00:28]} 33. Rxf6 {[%clk 0:00:22]}  dxc3 {[%clk 0:00:16]} 34. fxg4 {[%clk 0:00:19]}  Rd2 {[%clk 0:00:15]} 35. Bf1 {[%clk 0:00:16]}  c2 {[%clk 0:00:15]} 36. Rc6 {[%clk 0:00:13]}  Rd1 {[%clk 0:00:14]} 37. R1xc2 {[%clk 0:00:12]}  Rxf1# {[%clk 0:00:14]} 0-1


[Site "https://www.chess.com"]

[Event "Titled Tuesday Blitz July 18 Early 2023"]
[White "vishwa_vijeta"]
[Black "Mika, Tomasz"]
[BlackFideId "1132970"]
[WhiteElo "2014"]
[BlackElo "2413"]
[Result "1-0"]
[Round "2"]
[TimeControl "180+2"]
[Date "2023.07.18"]
[WhiteClock "0:00:53"]
[BlackClock "0:00:22"]
[Board "211"]

1. e4 {[%clk 0:03:00]}  c6 {[%clk 0:02:46]} 2. d4 {[%clk 0:02:59]}  d5 {[%clk 0:02:47]} 3. Nd2 {[%clk 0:02:58]}  dxe4 {[%clk 0:02:46]} 4. Nxe4 {[%clk 0:02:59]}  Bf5 {[%clk 0:02:47]} 5. Ng3 {[%clk 0:02:59]}  Bg6 {[%clk 0:02:47]} 6. h4 {[%clk 0:02:59]}  h6 {[%clk 0:02:47]} 7. Nf3 {[%clk 0:02:59]}  Nd7 {[%clk 0:02:45]} 8. h5 {[%clk 0:02:59]}  Bh7 {[%clk 0:02:46]} 9. Bd3 {[%clk 0:03:00]}  Bxd3 {[%clk 0:02:45]} 10. Qxd3 {[%clk 0:03:00]}  Ngf6 {[%clk 0:02:46]} 11. Bd2 {[%clk 0:02:52]}  e6 {[%clk 0:02:46]} 12. O-O-O {[%clk 0:02:42]}  Be7 {[%clk 0:02:45]} 13. Kb1 {[%clk 0:02:41]}  O-O {[%clk 0:02:45]} 14. Ne4 {[%clk 0:02:41]}  c5 {[%clk 0:02:46]} 15. g4 {[%clk 0:02:41]}  cxd4 {[%clk 0:02:39]} 16. g5 {[%clk 0:02:19]}  Nxe4 {[%clk 0:02:32]} 17. Qxe4 {[%clk 0:02:19]}  Nc5 {[%clk 0:02:31]} 18. Qg4 {[%clk 0:02:18]}  d3 {[%clk 0:01:45]} 19. Bc3 {[%clk 0:02:02]}  Bxg5 {[%clk 0:01:40]} 20. Rhg1 {[%clk 0:01:18]}  Qd5 {[%clk 0:01:07]} 21. Nxg5 {[%clk 0:01:15]}  dxc2+ {[%clk 0:01:00]} 22. Kxc2 {[%clk 0:01:10]}  Qxg5 {[%clk 0:00:22]} 23. Qf3 {[%clk 0:00:53]} 1-0


[Site "https://www.chess.com"]